bitfinex/quotes_BTCUSD_20250316
["timestamp","ask_amount","ask_price","bid_price","bid_amount"]
[1742154914097,0.16234472,83377.0,83376.0,0.0083384]
[1742154915433,0.16234472,83377.0,83376.0,0.0043384]
[1742154915661,0.16234472,83377.0,83376.0,0.0003384]
[1742154916025,0.16384424,83377.0,83376.0,0.0033384]
[1742154916213,0.17838509,83377.0,83376.0,0.0033384]
[1742154916352,0.17838509,83377.0,83376.0,0.0013384]
[1742154916554,0.17688557,83377.0,83376.0,0.0023384]
[1742154917185,0.17688557,83377.0,83376.0,0.0003384]
[1742154918297,0.17838522,83377.0,83376.0,0.0003384]
[1742154918489,0.17838522,83377.0,83363.0,0.0003382]
[1742154918490,0.633519,83366.0,83363.0,0.0003382]
[1742154918685,0.79777985,83366.0,83365.0,2e-07]
[1742154919040,0.446595,83364.0,83363.0,4e-07]
[1742154919252,0.46113585,83364.0,83363.0,4e-07]
[1742154919396,0.46846691,83364.0,83363.0,4e-07]
[1742154920874,0.204017,83326.0,83325.0,0.0003384]
[1742154921085,0.204017,83326.0,83325.0,0.00075015]
[1742154921258,0.21128568,83326.0,83325.0,0.00075015]
[1742154921912,0.21278591,83326.0,83325.0,0.00075015]
[1742154922127,0.21128568,83326.0,83325.0,0.00675015]
[1742154922536,0.21128568,83326.0,83325.0,0.00075015]
[1742154922988,0.21128568,83326.0,83325.0,0.00575015]
[1742154923386,0.230093,83326.0,83325.0,0.00575015]
[1742154924025,0.230093,83326.0,83325.0,0.01075015]
[1742154926211,0.230093,83326.0,83325.0,0.01075015]
[1742154926671,0.230093,83326.0,83325.0,0.00575015]
[1742154926893,0.230093,83326.0,83325.0,0.00075015]
[1742154927093,0.230093,83326.0,83325.0,0.00375015]
[1742154928074,0.230093,83326.0,83325.0,0.00675015]
[1742154933856,0.30689322,83326.0,83325.0,0.00675015]
[1742154934092,0.305393,83326.0,83325.0,0.00675015]
[1742154934495,0.28658568,83326.0,83325.0,0.00675015]
[1742154934981,0.28658568,83326.0,83325.0,0.00375015]
[1742154935198,0.28658568,83326.0,83325.0,0.00175015]
[1742154935402,0.28758568,83326.0,83325.0,0.00075015]
[1742154936629,0.28658568,83326.0,83325.0,0.00075015]
[1742154937247,0.33308568,83326.0,83325.0,0.00075015]
[1742154938033,0.33408568,83326.0,83325.0,0.00075015]
[1742154938731,0.34862653,83326.0,83325.0,0.00075015]
[1742154938935,0.34762653,83326.0,83325.0,1.5e-07]
[1742154939339,0.34862653,83326.0,83325.0,1.5e-07]
[1742154939803,0.35262653,83326.0,83325.0,1.5e-07]
[1742154939984,0.35262653,83326.0,83312.0,0.0003384]
[1742154939985,0.325848,83313.0,83312.0,5.5e-07]
[1742154940174,0.49230561,83313.0,83312.0,0.000124]
[1742154940350,0.49230561,83313.0,83312.0,1e-06]
[1742154941745,0.49530561,83313.0,83312.0,1e-06]
[1742154942709,0.51412129,83313.0,83312.0,1e-06]
[1742154946411,0.51412129,83313.0,83312.0,0.0003396]
[1742154950798,0.51412129,83313.0,83312.0,6e-07]
[1742154954183,0.49958044,83313.0,83312.0,6e-07]
[1742154957797,0.49974984,83313.0,83312.0,6e-07]
[1742154958206,0.49970984,83313.0,83312.0,6e-07]
[1742154967709,0.91530984,83313.0,83312.0,6e-07]
[1742154968372,0.77066984,83313.0,83312.0,6e-07]
[1742154968550,0.63005416,83313.0,83312.0,6e-07]
[1742154969194,0.70635416,83313.0,83312.0,6e-07]
[1742154969414,0.70335416,83313.0,83312.0,6e-07]
[1742154969582,0.71565302,83313.0,83312.0,6e-07]
[1742154969989,0.71565302,83313.0,83312.0,0.0010006]
[1742154970467,0.86125302,83313.0,83312.0,0.0010006]
[1742154970604,0.86225302,83313.0,83312.0,0.0010006]
[1742154971263,0.77365416,83313.0,83312.0,0.0010006]
[1742154972212,0.79246807,83313.0,83312.0,0.0010006]
[1742154973051,0.78589755,83313.0,83312.0,0.0010006]
[1742154973570,0.77365416,83313.0,83312.0,0.0010006]
[1742154974444,0.78600306,83313.0,83312.0,0.0010006]
[1742154975655,0.77365416,83313.0,83312.0,0.0010006]
[1742154976103,0.89735416,83313.0,83312.0,0.0010006]
[1742154976312,0.92905102,83313.0,83312.0,6e-07]
[1742154976514,1.22905102,83313.0,83312.0,6e-07]
[1742154977498,0.279061,83308.0,83307.0,1e-06]
[1742154977723,0.70920185,83308.0,83307.0,0.00012455]
[1742154977842,0.71608453,83308.0,83307.0,5.5e-07]
[1742154978721,0.71608453,83308.0,83305.0,0.0003384]
[1742154978722,0.0620028,83306.0,83305.0,9.5e-07]
[1742154978929,0.204095,83294.0,83293.0,7.5e-07]
[1742154979226,0.37155591,83294.0,83293.0,8.981e-05]
[1742154979461,0.37005477,83294.0,83293.0,8.981e-05]
[1742154980904,0.37005477,83294.0,83293.0,0.00108981]
[1742154981126,0.37005477,83294.0,83293.0,8.981e-05]
[1742154981585,0.37005477,83294.0,83293.0,0.00108981]
[1742154981727,0.38887444,83294.0,83293.0,0.00108981]
[1742154982331,0.80447444,83294.0,83293.0,0.00108981]
[1742154982936,0.80547444,83294.0,83293.0,0.00108981]
[1742154983336,0.79093359,83294.0,83293.0,0.00108981]
[1742154983541,0.77211392,83294.0,83293.0,0.00108981]
[1742154983738,0.77211392,83294.0,83293.0,8.981e-05]
[1742154983945,0.77311392,83294.0,83293.0,8.981e-05]
[1742154984507,0.77211392,83294.0,83293.0,8.981e-05]
[1742154984703,0.77111392,83294.0,83293.0,0.00108981]
[1742154987712,0.78993238,83294.0,83293.0,0.00108981]
[1742154988851,0.77111392,83294.0,83293.0,0.00108981]
[1742154995947,0.78993248,83294.0,83293.0,0.00108981]
[1742154997191,0.77111392,83294.0,83293.0,0.00108981]
[1742155001503,0.77111392,83294.0,83293.0,0.00089253]
[1742155005068,0.7899324,83294.0,83293.0,0.00089253]
[1742155005847,0.7899324,83294.0,83293.0,0.00123133]
[1742155006050,0.77128332,83294.0,83293.0,0.00123133]
[1742155011825,0.62672332,83294.0,83293.0,0.00123133]
[1742155013785,0.6455411,83294.0,83293.0,0.00123133]
[1742155014715,0.62672332,83294.0,83293.0,0.00123133]
[1742155017513,0.21112332,83294.0,83293.0,0.00123133]
[1742155019040,0.22994105,83294.0,83293.0,0.00123133]
[1742155020660,0.02584605,83294.0,83293.0,0.00123133]
[1742155020871,0.19911832,83294.0,83293.0,0.00123133]
[1742155021075,0.00702832,83294.0,83293.0,0.00123133]
[1742155021470,0.00702832,83294.0,83293.0,0.01312697]
[1742155022019,0.00702832,83294.0,83293.0,0.01223444]
[1742155022429,0.00702832,83294.0,83293.0,0.01523444]
[1742155023223,0.00702832,83294.0,83293.0,0.02823944]
[1742155023452,0.00702832,83294.0,83293.0,0.11143944]
[1742155023652,0.0001694,83294.0,83293.0,0.11143944]
[1742155023888,0.01898522,83294.0,83293.0,0.11143944]
[1742155024802,0.0001694,83294.0,83293.0,0.11143944]
[1742155025444,0.0001694,83294.0,83293.0,0.09943444]
[1742155026427,0.00704307,83294.0,83293.0,0.09943444]
[1742155026566,0.0001694,83294.0,83293.0,0.09943444]
[1742155026776,0.00704307,83294.0,83293.0,0.09943444]
[1742155026977,0.0001694,83294.0,83293.0,0.09943444]
[1742155027483,0.00704307,83294.0,83293.0,0.09943444]
[1742155027693,0.00704307,83294.0,83293.0,0.0043388]
[1742155027901,0.10104907,83294.0,83293.0,0.0043388]
[1742155028110,0.11986553,83294.0,83293.0,0.0043388]
[1742155028779,0.11986553,83294.0,83287.0,6e-07]
[1742155028780,0.012006,83288.0,83287.0,6e-07]
[1742155028991,0.60065205,83288.0,83287.0,0.00012423]
[1742155029198,0.60601559,83288.0,83287.0,0.00012423]
[1742155029631,0.60601559,83288.0,83287.0,2.3e-07]
[1742155030494,0.60801559,83288.0,83287.0,2.3e-07]
[1742155031638,0.61001559,83288.0,83287.0,2.3e-07]
[1742155031847,0.60801559,83288.0,83287.0,2.3e-07]
[1742155032278,0.61001559,83288.0,83287.0,2.3e-07]
[1742155033759,0.62883706,83288.0,83287.0,2.3e-07]
[1742155039634,0.62883706,83288.0,83287.0,0.00033903]
[1742155040053,0.62883706,83288.0,83287.0,3e-08]
[1742155040054,0.62900646,83288.0,83287.0,3e-08]
[1742155040461,0.61018499,83288.0,83287.0,3e-08]
[1742155040855,0.60818499,83288.0,83287.0,3e-08]
[1742155041057,0.60618499,83288.0,83287.0,3e-08]
[1742155041465,0.61018499,83288.0,83287.0,3e-08]
[1742155042890,0.61518499,83288.0,83287.0,3e-08]
[1742155045209,0.63400623,83288.0,83287.0,3e-08]
[1742155047496,0.63900623,83288.0,83287.0,3e-08]
[1742155047721,0.68800623,83288.0,83287.0,3e-08]
[1742155047944,0.66918499,83288.0,83287.0,3e-08]
[1742155048617,0.66918499,83288.0,83261.0,2.7e-07]
[1742155048618,0.323941,83272.0,83271.0,4.3e-07]
[1742155048843,0.49472985,83272.0,83271.0,4.3e-07]
[1742155049237,0.50155649,83272.0,83271.0,4.3e-07]
[1742155049857,0.50455649,83272.0,83271.0,4.3e-07]
[1742155050070,0.50655649,83272.0,83271.0,4.3e-07]
[1742155050264,0.50155649,83272.0,83271.0,4.3e-07]
[1742155051281,0.52138007,83272.0,83271.0,4.3e-07]
[1742155051635,0.52338007,83272.0,83271.0,4.3e-07]
[1742155052154,0.50455649,83272.0,83271.0,4.3e-07]
[1742155052632,0.50455649,83272.0,83271.0,0.00016963]
[1742155056627,0.52338011,83272.0,83271.0,0.00016963]
[1742155061133,0.50455649,83272.0,83271.0,0.00016963]
[1742155062474,0.50255649,83272.0,83271.0,0.00016963]
[1742155062683,0.50355649,83272.0,83271.0,6.3e-07]
[1742155062893,0.50555649,83272.0,83271.0,6.3e-07]
[1742155063753,0.50555649,83272.0,83269.0,3e-08]
[1742155063754,0.60659585,83270.0,83269.0,3e-08]
[1742155063963,0.30161485,83262.0,83261.0,2.7e-07]
[1742155064198,0.30161485,83262.0,83261.0,6.3e-07]
[1742155064408,0.60661485,83262.0,83261.0,6.3e-07]
[1742155064627,0.61341314,83262.0,83261.0,6.3e-07]
[1742155065357,0.72058813,83262.0,83261.0,6.3e-07]
[1742155065597,0.76968813,83262.0,83261.0,6.3e-07]
[1742155065813,0.79774047,83262.0,83261.0,6.3e-07]
[1742155066233,0.84774027,83262.0,83261.0,6.3e-07]
[1742155066649,0.85274027,83262.0,83261.0,6.3e-07]
[1742155067076,0.84874027,83262.0,83261.0,6.3e-07]
[1742155067307,0.22378785,83232.0,83231.0,3e-08]
[1742155067542,0.22378785,83232.0,83231.0,8.898e-05]
[1742155067543,0.36298785,83232.0,83231.0,8.898e-05]
[1742155067772,0.36976562,83232.0,83231.0,8.898e-05]
[1742155068387,0.204255,83229.0,83228.0,7.8e-07]
[1742155068612,0.52029811,83229.0,83228.0,7.508e-05]
[1742155068825,0.52556904,83229.0,83228.0,7.508e-05]
[1742155069041,0.504267,83224.0,83223.0,8.8e-07]
[1742155069293,0.56790785,83224.0,83223.0,0.0001246]
[1742155069503,0.57467643,83224.0,83223.0,0.0001246]
[1742155069741,0.53776085,83224.0,83223.0,0.0001246]
[1742155070022,0.51103558,83224.0,83223.0,0.0001246]
[1742155070497,0.51403558,83224.0,83223.0,0.0001246]
[1742155070744,0.51103558,83224.0,83223.0,0.0001246]
[1742155071209,0.51203558,83224.0,83223.0,0.0001246]
[1742155071462,0.51403558,83224.0,83223.0,0.0001246]
[1742155071880,0.21403558,83224.0,83223.0,0.0001246]
[1742155073138,0.21303558,83224.0,83223.0,0.0001246]
[1742155073426,0.21403558,83224.0,83223.0,0.0001246]
[1742155073637,0.21303558,83224.0,83223.0,0.0001246]
[1742155073845,0.21103558,83224.0,83223.0,0.0001246]
[1742155074052,0.21203558,83224.0,83223.0,0.0001246]
[1742155074283,0.23086986,83224.0,83223.0,0.0001246]
[1742155074501,0.22986986,83224.0,83223.0,0.0001246]
[1742155074912,0.23086986,83224.0,83223.0,0.0001246]
[1742155075299,0.22986986,83224.0,83223.0,0.0001246]
[1742155075916,0.03761786,83224.0,83223.0,0.0785246]
[1742155076130,0.02560286,83224.0,83223.0,0.0785246]
[1742155076356,0.01878358,83224.0,83223.0,0.0785246]
[1742155077181,0.01878358,83224.0,83223.0,0.0905396]
[1742155077182,0.00676858,83224.0,83223.0,0.0905396]
[1742155077661,0.204255,83229.0,83224.0,0.192252]
[1742155077867,0.012014,83234.0,83228.0,0.012015]
[1742155078300,0.012013,83238.0,83229.0,0.012015]
[1742155078507,0.012013,83240.0,83234.0,0.012014]
[1742155078712,0.192219,83238.0,83232.0,0.012014]
[1742155079260,0.012013,83239.0,83232.0,0.204246]
[1742155079486,0.012013,83237.0,83230.0,0.138814]
[1742155079716,0.012013,83237.0,83232.0,0.192233]
[1742155080044,0.012013,83243.0,83237.0,0.012013]
[1742155080229,0.19221,83242.0,83237.0,0.012013]
[1742155080366,0.012011,83251.0,83234.0,0.192229]
[1742155080367,0.204209,83248.0,83235.0,0.012014]
[1742155080587,0.01454085,83267.0,83246.0,0.1922]
[1742155080588,0.012011,83252.0,83246.0,0.1922]
[1742155080778,0.012011,83252.0,83245.0,0.0767]
[1742155080779,0.012012,83246.0,83245.0,0.0767]
[1742155081307,0.012012,83246.0,83245.0,0.08882861]
[1742155081656,0.012012,83250.0,83245.0,0.08882861]
[1742155081863,0.012012,83248.0,83245.0,0.08882861]
[1742155082282,0.012012,83248.0,83245.0,0.08982861]
[1742155082902,0.012012,83250.0,83245.0,0.08982861]
[1742155083112,0.204206,83249.0,83245.0,0.09182861]
[1742155083339,0.012012,83246.0,83245.0,0.08982861]
[1742155083778,0.012012,83246.0,83245.0,0.01512861]
[1742155083984,0.012012,83246.0,83245.0,0.001]
[1742155084194,0.012012,83246.0,83232.0,0.0767]
[1742155084195,0.012014,83234.0,83232.0,0.0767]
[1742155084418,0.192224,83236.0,83232.0,0.0767]
[1742155084896,0.012014,83233.0,83232.0,0.01197016]
[1742155085269,0.012014,83231.0,83225.0,0.192249]
[1742155085824,0.012014,83231.0,83223.0,0.4131976]
[1742155085825,0.19224,83229.0,83223.0,0.2209446]
[1742155086095,0.00677217,83230.0,83226.0,0.012015]
[1742155086300,0.00676335,83228.0,83227.0,0.204259]
[1742155086708,0.001,83233.0,83232.0,0.204247]
[1742155087161,0.001,83233.0,83232.0,0.279947]
[1742155087390,0.0003386,83246.0,83242.0,0.19221]
[1742155087624,0.0003386,83246.0,83242.0,0.19121]
[1742155087901,0.00676335,83245.0,83242.0,0.19121]
[1742155088320,0.00676335,83245.0,83244.0,0.204218]
[1742155088483,0.0003386,83246.0,83244.0,0.203218]
[1742155088687,0.00676335,83245.0,83244.0,0.202218]
[1742155089050,0.00676335,83245.0,83244.0,1.702218]
[1742155089257,0.00676335,83245.0,83244.0,1.778918]
[1742155089477,0.0003386,83246.0,83244.0,1.5767]
[1742155089685,0.012013,83242.0,83240.0,0.14408]
[1742155090101,0.012013,83241.0,83240.0,0.14408]
[1742155090322,0.012013,83241.0,83235.0,0.20424]
[1742155090323,0.21100556,83241.0,83235.0,0.20424]
[1742155090536,0.21100556,83241.0,83234.0,0.192229]
[1742155090537,0.012013,83240.0,83234.0,0.192229]
[1742155090739,0.012013,83241.0,83236.0,0.192223]
[1742155090945,0.00677856,83239.0,83234.0,0.192229]
[1742155091177,0.204226,83241.0,83234.0,0.192229]
[1742155091372,0.00677856,83238.0,83236.0,0.192223]
[1742155091639,0.012013,83242.0,83236.0,0.192223]
[1742155091835,0.00677856,83237.0,83236.0,0.192223]
[1742155092009,0.012013,83242.0,83236.0,0.192223]
[1742155092485,0.00677856,83241.0,83236.0,0.204237]
[1742155092692,0.00677856,83241.0,83236.0,0.208237]
[1742155093012,0.00677856,83241.0,83236.0,0.204237]
[1742155093293,0.00677856,83241.0,83236.0,0.207237]
[1742155093747,0.00677856,83241.0,83233.0,0.059814]
[1742155093748,0.192222,83237.0,83233.0,0.0478]
[1742155093922,0.204235,83237.0,83236.0,0.003]
[1742155094248,0.204235,83237.0,83236.0,0.006]
[1742155094384,0.204235,83237.0,83236.0,0.003]
[1742155094597,0.22306359,83237.0,83236.0,0.003]
[1742155094800,0.22306359,83237.0,83236.0,0.006]
[1742155095214,0.204245,83234.0,83229.0,0.19224]
[1742155095396,0.22306359,83237.0,83236.0,0.004]
[1742155095595,0.01882859,83237.0,83236.0,0.007]
[1742155096876,0.01882859,83237.0,83236.0,0.004]
[1742155097079,0.03084159,83237.0,83236.0,0.004]
[1742155098112,0.03084159,83237.0,83236.0,0.008]
[1742155099664,0.03084159,83237.0,83236.0,0.0081693]
[1742155102566,0.012013,83237.0,83236.0,0.0081693]
[1742155105530,0.03084208,83237.0,83236.0,0.0081693]
[1742155106158,0.01882908,83237.0,83236.0,0.0081693]
[1742155106368,0.02560852,83237.0,83236.0,0.0081693]
[1742155107881,0.02560852,83237.0,83236.0,0.0201833]
[1742155108116,0.2045576,83244.0,83237.0,0.204235]
[1742155108333,0.0003386,83244.0,83237.0,0.012013]
[1742155108558,0.0003386,83244.0,83242.0,0.012013]
[1742155109220,0.0003386,83244.0,83240.0,0.0813]
[1742155110002,0.0003386,83244.0,83240.0,0.093313]
[1742155110447,0.0003386,83244.0,83240.0,0.285526]
[1742155110645,0.0003386,83244.0,83242.0,0.19221]
[1742155110851,0.0003386,83244.0,83241.0,0.012013]
[1742155111268,0.0003386,83244.0,83242.0,0.004]
[1742155111470,0.0003386,83244.0,83242.0,0.19621]
[1742155111677,0.0003386,83244.0,83242.0,0.004]
[1742155111885,0.0003386,83244.0,83242.0,0.008]
[1742155112091,0.0003386,83244.0,83242.0,0.004]
[1742155112917,0.0003386,83244.0,83242.0,0.008]
[1742155113708,0.1925466,83244.0,83242.0,0.008]
[1742155113911,0.0003386,83244.0,83242.0,0.008]
[1742155115391,0.0003386,83244.0,83243.0,0.012013]
[1742155116388,0.0003386,83244.0,83242.0,0.196208]
[1742155116592,0.0003386,83244.0,83243.0,0.004]
[1742155116810,0.01916545,83244.0,83243.0,0.004]
[1742155116970,0.01916545,83244.0,83243.0,0.008]
[1742155119241,0.01916545,83244.0,83242.0,0.192208]
[1742155119476,0.01916545,83244.0,83242.0,0.196208]
[1742155119675,0.192208,83243.0,83242.0,0.008]
[1742155119874,0.204221,83243.0,83242.0,0.004]
[1742155120898,0.204221,83243.0,83242.0,0.008]
[1742155121103,0.204221,83243.0,83242.0,0.004]
[1742155121274,0.00678242,83243.0,83242.0,0.004]
[1742155121699,0.00678242,83243.0,83240.0,0.192214]
[1742155122207,0.00678242,83243.0,83242.0,0.005]
[1742155122748,0.00678242,83243.0,83240.0,0.192214]
[1742155122954,0.00678242,83243.0,83241.0,0.204224]
[1742155123830,0.00678242,83243.0,83242.0,0.006]
[1742155124659,0.02560937,83243.0,83242.0,0.003]
[1742155124886,0.02560937,83243.0,83242.0,1.5]
[1742155125338,0.02560937,83243.0,83241.0,0.207224]
[1742155125743,0.02560937,83243.0,83242.0,0.012013]
[1742155126183,0.01882695,83243.0,83242.0,0.012013]
[1742155127050,0.01882695,83243.0,83242.0,0.015013]
[1742155127253,0.01882695,83243.0,83242.0,0.006]
[1742155127648,0.02560863,83243.0,83242.0,0.006]
[1742155133107,0.02560863,83243.0,83242.0,1.506]
[1742155134570,0.01882695,83243.0,83242.0,1.506]
[1742155136089,0.01882695,83243.0,83242.0,0.006]
[1742155136546,0.02560506,83243.0,83242.0,0.006]
[1742155140160,0.02560506,83243.0,83242.0,1.506]
[1742155140372,0.02560506,83243.0,83242.0,0.006]
[1742155140577,0.01882695,83243.0,83242.0,0.006]
[1742155140963,0.02560506,83243.0,83242.0,0.006]
[1742155141180,0.01882695,83243.0,83242.0,0.006]
[1742155141772,0.01882695,83243.0,83242.0,0.018013]
[1742155143358,0.02560508,83243.0,83242.0,0.018013]
[1742155144132,0.01882695,83243.0,83242.0,0.018013]
[1742155144370,0.02560508,83243.0,83242.0,0.018013]
[1742155144786,0.00677813,83243.0,83242.0,0.018013]
[1742155144960,0.0003386,83244.0,83243.0,0.204221]
[1742155145613,0.0003386,83244.0,83243.0,0.20482799]
[1742155145877,0.0003386,83244.0,83243.0,0.204221]
[1742155146233,0.0003386,83244.0,83243.0,1.704221]
[1742155147243,0.0003386,83244.0,83243.0,1.710221]
[1742155148376,0.0003386,83244.0,83243.0,1.715221]
[1742155151743,0.0003386,83244.0,83243.0,2.015221]
[1742155153457,0.0003386,83244.0,83243.0,2.082821]
[1742155153664,0.0003386,83244.0,83243.0,2.088821]
[1742155154434,6e-07,83244.0,83243.0,2.20839603]
[1742155154633,2e-07,83246.0,83245.0,0.582815]
[1742155154797,2e-07,83246.0,83245.0,0.631715]
[1742155155467,0.0003386,83262.0,83261.0,0.204176]
[1742155155667,0.0003386,83262.0,83261.0,0.34850211]
[1742155155899,0.0003386,83262.0,83261.0,0.347896]
[1742155156072,0.0003386,83262.0,83261.0,1.895696]
[1742155156735,0.0003386,83262.0,83261.0,2.195696]
[1742155156935,0.0003384,83272.0,83271.0,0.504151]
[1742155157319,0.0003384,83272.0,83271.0,0.59948193]
[1742155158201,0.0003384,83272.0,83271.0,0.60548193]
[1742155158426,0.0003384,83272.0,83271.0,0.64728193]
[1742155158825,0.0001694,83288.0,83287.0,0.204112]
[1742155159030,0.00058095,83288.0,83287.0,0.34843728]
[1742155159227,0.00058095,83288.0,83287.0,1.847832]
[1742155160201,0.00058095,83288.0,83287.0,2.147832]
[1742155160653,0.00058095,83288.0,83287.0,2.22023566]
[1742155161095,0.00058095,83288.0,83287.0,2.23123566]
[1742155161502,0.00058095,83288.0,83287.0,2.22023566]
[1742155161668,0.00058095,83288.0,83287.0,2.22623566]
[1742155161891,0.00058095,83288.0,83287.0,2.23223566]
[1742155162069,0.00058095,83288.0,83287.0,2.22623566]
[1742155163352,0.00058095,83288.0,83287.0,0.14964]
[1742155163573,0.204119,83285.0,83278.0,0.312007]
[1742155163785,0.204119,83285.0,83284.0,0.14364]
[1742155165195,0.204119,83285.0,83284.0,0.14964]
[1742155165398,0.01939724,83288.0,83285.0,0.192111]
[1742155165610,0.01939724,83288.0,83284.0,0.359756]
[1742155165611,0.192106,83287.0,83284.0,0.15564]
[1742155165792,0.204112,83287.0,83284.0,0.15564]
[1742155165969,0.012006,83286.0,83284.0,0.15564]
[1742155166314,0.00687725,83285.0,83284.0,0.15564]
[1742155166518,0.01888325,83285.0,83284.0,0.15564]
[1742155167091,0.01888325,83285.0,83284.0,0.006]
[1742155170171,0.00058095,83288.0,83285.0,0.204116]
[1742155170376,0.00058095,83288.0,83282.0,0.012007]
[1742155170581,0.01881789,83287.0,83283.0,0.192116]
[1742155170769,0.01881789,83287.0,83285.0,0.192109]
[1742155171092,0.01881789,83287.0,83285.0,0.204115]
[1742155171584,0.01881789,83287.0,83285.0,0.001]
[1742155171909,0.01881789,83287.0,83283.0,0.204123]
[1742155172373,0.01881789,83287.0,83285.0,0.005]
[1742155172571,0.012006,83286.0,83285.0,0.005]
[1742155172872,0.012006,83286.0,83285.0,0.002]
[1742155173072,0.012006,83286.0,83285.0,0.006]
[1742155173632,0.012006,83286.0,83285.0,0.002]
[1742155173854,0.012006,83286.0,83281.0,0.19212]
[1742155174053,0.204115,83286.0,83283.0,0.003]
[1742155174568,0.204115,83286.0,83281.0,0.19212]
[1742155174984,0.204115,83286.0,83285.0,0.004]
[1742155175157,0.204115,83286.0,83285.0,0.008]
[1742155175344,0.204115,83286.0,83285.0,0.004]
[1742155175544,0.012006,83286.0,83281.0,0.204127]
[1742155175771,0.01915629,83287.0,83283.0,0.20412]
[1742155176201,0.01915629,83287.0,83282.0,0.012007]
[1742155176533,0.03116229,83287.0,83285.0,0.004]
[1742155176707,0.03116229,83287.0,83282.0,0.012007]
[1742155177057,0.03116229,83287.0,83283.0,0.004]
[1742155177257,0.204115,83286.0,83285.0,0.004]
[1742155177766,0.204115,83286.0,83283.0,0.004]
[1742155178164,0.204115,83286.0,83281.0,0.192119]
[1742155178165,0.204115,83286.0,83282.0,0.003]
[1742155178390,0.192113,83284.0,83282.0,0.003]
[1742155178595,0.0824,83283.0,83282.0,0.004]
[1742155178818,0.0824,83283.0,83279.0,0.204132]
[1742155179709,0.0824,83283.0,83282.0,0.005]
[1742155179884,0.0824,83283.0,83281.0,0.19212]
[1742155180087,0.094407,83283.0,83278.0,0.012007]
[1742155180302,0.204125,83282.0,83279.0,0.005]
[1742155180699,0.22294338,83282.0,83279.0,0.005]
[1742155181097,0.00686044,83281.0,83279.0,0.005]
[1742155181419,0.192122,83280.0,83276.0,1.5]
[1742155181613,0.204134,83279.0,83276.0,1.5]
[1742155181813,0.204137,83277.0,83276.0,1.5]
[1742155182014,0.00685999,83278.0,83276.0,1.5]
[1742155182338,0.00685991,83277.0,83276.0,1.5]
[1742155182762,0.204136,83278.0,83276.0,1.5]
[1742155182962,0.00685753,83277.0,83276.0,1.504]
[1742155183204,0.00685753,83277.0,83276.0,1.5]
[1742155184265,0.00685753,83277.0,83276.0,1.504]
[1742155184668,0.00685753,83277.0,83276.0,1.5]
[1742155184874,0.286547,83273.0,83272.0,0.0001692]
[1742155185275,0.29340458,83273.0,83272.0,0.0001692]
[1742155185753,0.31222735,83273.0,83272.0,0.0001692]
[1742155186309,0.31222735,83273.0,83272.0,0.0021692]
[1742155187347,0.29340458,83273.0,83272.0,0.0021692]
[1742155187916,0.29340458,83273.0,83272.0,0.0031692]
[1742155191845,0.31222647,83273.0,83272.0,0.0031692]
[1742155197809,0.29340458,83273.0,83272.0,0.0031692]
[1742155198700,0.29374298,83273.0,83272.0,0.0031692]
[1742155198913,0.08959598,83273.0,83272.0,0.0031692]
[1742155199114,0.00719598,83273.0,83272.0,0.03914186]
[1742155199313,0.00719598,83273.0,83272.0,0.0151772]
[1742155199533,0.0003384,83273.0,83272.0,0.0151772]
[1742155199849,0.0003384,83273.0,83272.0,1.8147827]
[1742155200047,0.0003384,83273.0,83272.0,1.8141772]
[1742155200272,0.0003384,83273.0,83272.0,1.8131772]
[1742155200443,0.0003384,83273.0,83272.0,1.8191772]
[1742155200679,0.0003384,83273.0,83272.0,1.8181772]
[1742155200832,0.0003384,83273.0,83272.0,1.82941945]
[1742155201040,0.0003384,83273.0,83272.0,1.83541945]
[1742155204064,0.0003384,83273.0,83272.0,0.0061692]
[1742155204466,0.0123464,83273.0,83272.0,0.0061692]
[1742155205291,0.01384755,83273.0,83272.0,0.0001692]
[1742155205490,0.0123464,83273.0,83272.0,0.0001692]
[1742155205762,0.0123464,83273.0,83272.0,0.0121692]
[1742155206112,0.0123464,83273.0,83272.0,0.0061692]
[1742155206323,0.0123464,83273.0,83272.0,0.0001692]
[1742155206517,0.0003384,83273.0,83272.0,0.0041692]
[1742155207128,0.0123464,83273.0,83272.0,0.0041692]
[1742155207471,0.0123464,83273.0,83272.0,0.0031692]
[1742155207833,0.0123464,83273.0,83272.0,0.1953102]
[1742155207834,0.0003384,83273.0,83272.0,0.1953102]
[1742155208222,0.0003384,83273.0,83272.0,0.0031692]
[1742155208547,0.0003384,83273.0,83272.0,0.0151772]
[1742155208748,0.0003384,83273.0,83272.0,0.15622314]
[1742155208973,0.0003384,83273.0,83272.0,0.48283753]
[1742155209174,0.0003384,83273.0,83272.0,1.98323159]
[1742155209759,0.0003384,83273.0,83272.0,1.99047384]
[1742155209970,0.0003384,83273.0,83272.0,1.99447384]
[1742155210189,4e-07,83273.0,83272.0,2.13958972]
[1742155210394,4e-07,83273.0,83272.0,2.12958972]
[1742155210771,4e-07,83273.0,83272.0,2.14158972]
[1742155210982,4e-07,83273.0,83272.0,2.17902201]
[1742155211189,1.5e-07,83294.0,83293.0,0.204097]
[1742155211350,1.5e-07,83294.0,83293.0,0.84637633]
[1742155211553,5.2e-07,83294.0,83293.0,0.85077203]
[1742155211787,5.2e-07,83294.0,83293.0,0.86531288]
[1742155213048,5.2e-07,83294.0,83293.0,0.8889647]
[1742155213593,0.0001694,83313.0,83293.0,0.90620695]
[1742155213796,0.0001694,83313.0,83312.0,0.504052]
[1742155214044,0.0001694,83313.0,83312.0,0.647452]
[1742155215340,0.0001694,83313.0,83306.0,0.774523]
[1742155215341,0.012003,83309.0,83306.0,0.76252]
[1742155215542,0.012003,83309.0,83303.0,0.14336]
[1742155215864,0.012003,83311.0,83303.0,0.335428]
[1742155216155,0.0001694,83313.0,83312.0,0.012003]
[1742155216295,0.0001694,83313.0,83312.0,0.018003]
[1742155216496,0.0001694,83313.0,83312.0,0.01818715]
[1742155216783,0.0001694,83313.0,83311.0,0.204054]
[1742155216984,0.01898085,83313.0,83312.0,0.012003]
[1742155217322,0.0001694,83313.0,83312.0,0.012003]
[1742155217772,0.0001694,83313.0,83312.0,0.01260719]
[1742155217972,0.0001694,83313.0,83312.0,0.31860719]
[1742155218178,0.0001694,83313.0,83312.0,0.318003]
[1742155219183,0.0001694,83313.0,83312.0,1.818003]
[1742155219414,0.0001694,83313.0,83312.0,1.824003]
[1742155219618,0.0001694,83313.0,83312.0,1.818003]
[1742155219825,0.0001694,83313.0,83312.0,1.812003]
[1742155220027,0.0001694,83313.0,83312.0,1.818003]